bitfinex/quotes_SOLUSD_20220114
["timestamp","ask_amount","ask_price","bid_price","bid_amount"]
[1642133039338,41.59717972,147.65,147.57,24.2871]
[1642133039539,1.90147972,147.64,147.57,24.2871]
[1642133040138,12.06407972,147.64,147.57,24.2871]
[1642133045246,1.90147972,147.64,147.57,34.4488]
[1642133046343,25.18517972,147.65,147.57,34.4488]
[1642133046545,25.18517972,147.65,147.58,2.709]
[1642133046853,25.18517972,147.65,147.57,37.1578]
[1642133047242,35.34717972,147.65,147.57,37.1578]
[1642133049548,41.59717972,147.65,147.57,36.9078]
[1642133050349,35.59717972,147.65,147.57,36.9078]
[1642133050551,2.709,147.64,147.57,34.1988]
[1642133050751,2.709,147.64,147.57,34.4488]
[1642133050950,2.959,147.64,147.57,34.4488]
[1642133051150,4.86047972,147.64,147.57,34.4488]
[1642133052351,4.61047972,147.64,147.57,34.4488]
[1642133052553,1.90147972,147.64,147.57,34.4488]
[1642133054177,25.18517972,147.65,147.57,34.4488]
[1642133057181,35.34717972,147.65,147.57,34.4488]
[1642133057681,25.18517972,147.65,147.57,34.4488]
[1642133058982,25.18517972,147.65,147.57,37.1578]
[1642133060283,1.90147972,147.65,147.57,37.1578]
[1642133060685,1.90147972,147.65,147.57,36.9078]
[1642133061486,1.90147972,147.65,147.57,34.1988]
[1642133062085,1.90147972,147.65,147.57,34.4488]
[1642133062488,1.90147972,147.65,147.57,37.1578]
[1642133063787,25.21927972,147.65,147.57,37.1578]
[1642133064688,23.3178,147.65,147.57,37.1578]
[1642133064889,23.3178,147.65,147.57,34.4488]
[1642133066287,23.3178,147.65,147.58,2.709]
[1642133066490,23.3178,147.65,147.58,2.959]
[1642133066689,33.4797,147.65,147.58,2.959]
[1642133066889,33.4797,147.65,147.58,0.25]
[1642133067694,33.4797,147.65,147.57,34.4488]
[1642133068292,33.4797,147.65,147.57,24.0371]
[1642133068491,9.78,147.64,147.55,2.709]
[1642133068691,9.78,147.64,147.52,27.34]
[1642133068692,10.1644,147.62,147.52,27.34]
[1642133068894,2.71,147.61,147.52,27.34]
[1642133069492,27.5769,147.61,147.52,27.34]
[1642133069893,27.8269,147.61,147.52,27.34]
[1642133070096,37.9916,147.61,147.53,10.1641]
[1642133070297,35.2816,147.61,147.53,12.10635822]
[1642133071097,35.2816,147.61,147.53,12.35635822]
[1642133071803,35.2816,147.61,147.53,10.4141]
[1642133074001,35.2816,147.61,147.52,1.94225822]
[1642133074002,102.9516,147.61,147.52,1.94225822]
[1642133074202,12.49,147.6,147.52,1.94225822]
[1642133074400,10.1677,147.57,147.52,1.94225822]
[1642133074600,2.711,147.56,147.52,1.94225822]
[1642133074800,2.711,147.56,147.49,1.94225822]
[1642133075006,2.961,147.56,147.49,1.94225822]
[1642133075400,2.711,147.56,147.49,10.4171]
[1642133075602,2.711,147.59,147.49,10.4171]
[1642133075806,25.6692,147.59,147.5,26.9741]
[1642133076004,23.2082,147.59,147.5,27.2241]
[1642133076404,25.9192,147.59,147.5,24.5131]
[1642133076605,36.0852,147.59,147.51,10.1659]
[1642133077003,36.0852,147.59,147.51,10.4159]
[1642133077904,42.0852,147.59,147.51,10.4159]
[1642133078609,36.0852,147.59,147.51,10.4159]
[1642133079111,33.3742,147.59,147.51,10.4159]
[1642133081338,33.1242,147.59,147.51,10.4159]
[1642133085342,33.1242,147.59,147.51,13.1259]
[1642133090850,33.1242,147.59,147.51,10.4159]
[1642133093954,33.1242,147.59,147.51,13.1259]
[1642133094952,39.1242,147.59,147.51,13.1259]
[1642133095155,39.1242,147.59,147.51,10.4159]
[1642133095757,33.1242,147.59,147.51,10.4159]
[1642133097256,33.1242,147.59,147.51,13.1259]
[1642133098686,28.9582,147.59,147.51,13.1259]
[1642133101561,28.9582,147.59,147.51,10.4159]
[1642133103263,22.9582,147.59,147.51,10.4159]
[1642133103462,14.36040991,147.62,147.51,10.6759]
[1642133103665,23.7182,147.61,147.52,24.7541]
[1642133103863,23.7182,147.61,147.54,10.1639]
[1642133104061,23.7182,147.61,147.54,34.9367]
[1642133104861,23.7182,147.61,147.54,40.9367]
[1642133105263,23.7182,147.61,147.54,30.7728]
[1642133105868,29.7182,147.61,147.54,30.7728]
[1642133106267,39.8828,147.61,147.54,30.7728]
[1642133106667,33.8828,147.61,147.54,30.7728]
[1642133106872,23.7182,147.61,147.54,30.7728]
[1642133107073,23.7182,147.61,147.54,33.4828]
[1642133107674,23.7182,147.61,147.54,27.4828]
[1642133108680,33.8828,147.61,147.54,27.4828]
[1642133109483,33.8828,147.61,147.54,24.7728]
[1642133110481,33.8828,147.61,147.54,34.9367]
[1642133110684,23.7182,147.61,147.54,34.9367]
[1642133114808,23.7182,147.61,147.54,36.86802429]
[1642133115510,23.7182,147.61,147.54,34.9367]
[1642133118310,23.7182,147.61,147.54,36.86802429]
[1642133120019,33.8828,147.61,147.54,36.86802429]
[1642133120415,39.8828,147.61,147.54,36.86802429]
[1642133121411,39.8828,147.61,147.54,34.9367]
[1642133124714,29.7182,147.61,147.54,34.9367]
[1642133129826,39.8828,147.61,147.54,34.9367]
[1642133132654,39.8828,147.61,147.54,36.86802429]
[1642133136257,39.8828,147.61,147.54,34.9367]
[1642133136956,33.8828,147.61,147.54,34.9367]
[1642133141763,46.9608,147.61,147.53,1.93132429]
[1642133141965,10.1664,147.59,147.53,1.93132429]
[1642133142565,10.1664,147.59,147.52,24.6997]
[1642133143065,10.1664,147.59,147.52,24.9497]
[1642133143869,16.1754,147.59,147.51,1.93132429]
[1642133144067,23.6963,147.58,147.51,1.93132429]
[1642133144267,10.1684,147.56,147.51,1.93132429]
[1642133144468,2.711,147.55,147.51,1.93132429]
[1642133144869,8.961,147.55,147.51,1.93132429]
[1642133145268,8.961,147.55,147.49,1.93132429]
[1642133145568,6.25,147.55,147.49,2.18132429]
[1642133145768,6.25,147.55,147.49,1.93132429]
[1642133145970,16.4191,147.55,147.49,1.93132429]
[1642133146171,2.711,147.54,147.49,1.93132429]
[1642133146370,8.529,147.54,147.49,1.93132429]
[1642133146570,8.779,147.54,147.48,1.93132429]
[1642133146771,33.2995,147.53,147.48,1.93132429]
[1642133146974,10.03,147.53,147.48,1.93132429]
[1642133147169,10.1711,147.52,147.48,1.93132429]
[1642133147571,10.4211,147.52,147.48,1.93132429]
[1642133147871,10.1711,147.52,147.46,1.93132429]
[1642133148071,8.529,147.54,147.46,2.18132429]
[1642133148072,2.711,147.54,147.46,2.18132429]
[1642133148271,22.9666,147.53,147.46,12.35092429]
[1642133148471,22.9666,147.53,147.47,2.711]
[1642133148871,22.9666,147.53,147.47,2.961]
[1642133149072,0.02,147.52,147.47,29.56650734]
[1642133149273,0.02,147.52,147.47,39.73540734]
[1642133150572,0.02,147.52,147.48,24.2286]
[1642133150973,0.02,147.52,147.48,24.4786]
[1642133151206,0.02,147.52,147.48,26.40992429]
[1642133152176,0.02,147.52,147.48,24.4786]
[1642133160120,0.02,147.52,147.48,0.25]
[1642133160621,0.02,147.52,147.47,2.18132429]
[1642133162926,0.02,147.52,147.47,24.97402429]
[1642133163736,0.02,147.52,147.47,35.14302429]
[1642133163927,0.02,147.52,147.47,41.14302429]
[1642133164130,0.02,147.52,147.49,33.8822]
[1642133164326,0.02,147.52,147.5,22.65172897]
[1642133164626,0.02,147.52,147.5,47.29672897]
[1642133165225,0.02,147.52,147.5,57.46142897]
[1642133165626,0.02,147.52,147.51,38.711]
[1642133165826,0.02,147.52,147.51,36.2]
[1642133166027,0.02,147.52,147.51,36.45]
[1642133169535,0.02,147.52,147.51,0.45]
[1642133169967,0.02,147.52,147.51,0.2]
[1642133171972,0.02,147.52,147.51,28.2]
[1642133172168,0.02,147.52,147.51,28.45]
[1642133179678,0.02,147.52,147.51,0.45]
[1642133180076,0.02,147.52,147.51,0.2]
[1642133180880,0.02,147.52,147.51,24.2]
[1642133181077,0.02,147.52,147.51,24.45]
[1642133183590,0.02,147.52,147.51,24.2]
[1642133184983,0.02,147.52,147.51,24.45]
[1642133189315,5.88439994,147.52,147.51,0.25]
[1642133189516,5.88439994,147.52,147.5,0.25]
[1642133189916,5.88439994,147.52,147.49,2.18132429]
[1642133190715,5.88439994,147.52,147.49,0.25]
[1642133191119,5.88439994,147.52,147.48,13.1289]
[1642133191716,5.88439994,147.52,147.48,2.961]
[1642133192416,5.88439994,147.52,147.48,0.25]
[1642133192621,5.88439994,147.52,147.47,28.05542429]
[1642133193418,5.88439994,147.52,147.47,27.80542429]
[1642133193617,5.88439994,147.52,147.47,4.64232429]
[1642133193819,8.84539994,147.52,147.47,4.64232429]
[1642133194020,8.59539994,147.52,147.47,4.64232429]
[1642133194220,5.88439994,147.52,147.47,4.64232429]
[1642133194720,5.88439994,147.52,147.47,2.711]
[1642133195127,5.88439994,147.52,147.47,2.961]
[1642133195322,5.88439994,147.52,147.47,0.25]
[1642133195519,5.88439994,147.52,147.46,10.4196]
[1642133201037,5.88439994,147.52,147.46,13.1316]
[1642133201832,5.88439994,147.52,147.46,15.06292429]
[1642133202234,5.88439994,147.52,147.46,4.89332429]
[1642133203039,2.85219997,147.52,147.46,14.67332429]
[1642133203238,0.02,147.52,147.46,22.36892837]
[1642133203437,0.02,147.52,147.48,23.83264084]
[1642133203637,0.02,147.52,147.49,2.711]
[1642133203836,1.87040991,147.55,147.5,9.98]
[1642133204036,1.87040991,147.55,147.5,10.23]
[1642133204438,1.87040991,147.58,147.51,10.1645]
[1642133204638,1.87040991,147.58,147.51,19.9445]
[1642133204837,1.87040991,147.58,147.51,20.1945]
[1642133205542,1.87040991,147.58,147.51,26.1945]
[1642133205740,1.87040991,147.59,147.51,20.1945]
[1642133206341,1.87040991,147.59,147.51,26.1945]
[1642133206943,1.87040991,147.6,147.55,10.163]
[1642133207472,1.87040991,147.6,147.55,10.413]
[1642133207675,7.87040991,147.6,147.55,10.413]
[1642133207870,1.87040991,147.6,147.55,10.413]
[1642133209072,1.87040991,147.6,147.56,9.78]
[1642133209372,1.87040991,147.6,147.58,10.1581]
[1642133209574,1.87040991,147.62,147.59,0.2]
[1642133211075,3.74081981,147.65,147.59,0.2]
[1642133211274,1.87040991,147.66,147.6,10.1591]
[1642133211475,1.87040991,147.66,147.6,10.4091]
[1642133213278,1.87040991,147.66,147.6,41.83411019]
[1642133216477,1.87040991,147.66,147.6,10.1591]
[1642133216681,2.709,147.65,147.58,10.1606]
[1642133217079,2.959,147.65,147.58,10.1606]
[1642133217281,2.709,147.65,147.58,10.1606]
[1642133217487,1.87040991,147.63,147.59,28.73672412]
[1642133217680,1.87040991,147.63,147.61,10.1586]
[1642133217881,1.87040991,147.63,147.62,0.2]
[1642133218283,1.87040991,147.65,147.62,0.2]
[1642133218679,5.86439994,147.64,147.62,0.2]
[1642133218881,5.86439994,147.64,147.61,0.25]
[1642133219081,5.86439994,147.64,147.59,39.14652412]
[1642133219483,5.86439994,147.64,147.59,10.4098]
[1642133219683,13.30439994,147.64,147.57,4.64032429]
[1642133219882,2.709,147.63,147.57,4.89032429]
[1642133220084,12.8722,147.63,147.57,2.959]
[1642133220585,2.709,147.63,147.57,2.959]
[1642133220790,2.71,147.65,147.57,2.959]
[1642133220987,6.0,147.65,147.57,27.1573]
[1642133221185,1.87040991,147.66,147.57,27.1573]
[1642133221385,1.87040991,147.63,147.57,27.1573]
[1642133221988,1.87040991,147.63,147.57,37.3189]
[1642133222395,1.94263597,147.66,147.58,9.78]
[1642133222587,1.94263597,147.66,147.59,2.709]
[1642133222787,1.94263597,147.66,147.6,9.78]
[1642133222990,1.94263597,147.66,147.61,2.709]
[1642133223189,3.74081981,147.69,147.62,22.89151917]
[1642133223392,30.68661981,147.71,147.64,10.1565]
[1642133223689,27.97761981,147.71,147.64,10.4065]
[1642133224488,24.2368,147.71,147.64,10.4065]
[1642133225391,24.4868,147.71,147.64,10.4065]
[1642133227491,24.2368,147.71,147.64,10.4065]
[1642133228594,6.44881981,147.72,147.64,10.4065]
[1642133228800,6.44881981,147.72,147.64,20.1865]
[1642133228994,6.44881981,147.72,147.65,4.40360408]
[1642133228995,3.74081981,147.72,147.65,4.40360408]
[1642133229192,3.74081981,147.72,147.68,10.1519]
[1642133229392,3.74081981,147.72,147.69,25.87292851]
[1642133229594,3.74081981,147.72,147.7,0.2]
[1642133230093,5.86439994,147.71,147.69,0.25]
[1642133230492,5.86439994,147.71,147.65,2.958]
[1642133231095,5.86439994,147.71,147.66,30.87195199]
[1642133231294,5.86439994,147.71,147.67,2.708]
[1642133231492,5.86439994,147.71,147.68,10.1529]
[1642133231694,3.74081981,147.76,147.69,2.908]
[1642133231894,3.74081981,147.75,147.69,0.2]
[1642133232196,3.74081981,147.75,147.69,0.45]
[1642133232995,3.74081981,147.75,147.69,0.2]
[1642133233196,24.7106,147.77,147.69,0.2]
[1642133234132,40.30062389,147.77,147.69,0.2]
[1642133234332,46.55062389,147.77,147.69,0.2]
[1642133234532,2.707,147.76,147.68,2.957]
[1642133234735,6.59065125,147.76,147.68,2.957]
[1642133235037,10.33147106,147.76,147.68,2.957]
[1642133236634,6.44781981,147.76,147.68,13.1096]
[1642133237638,6.44781981,147.76,147.68,10.4026]
[1642133239038,2.707,147.76,147.68,10.4026]
[1642133240340,2.707,147.76,147.68,16.4026]
[1642133240840,2.707,147.76,147.68,10.4026]
[1642133241043,2.707,147.76,147.68,16.4026]
[1642133241640,2.707,147.76,147.68,10.4026]
[1642133242342,2.707,147.76,147.68,13.1096]
[1642133243349,24.7106,147.77,147.68,13.1096]
[1642133243947,24.7106,147.77,147.68,19.1096]
[1642133245853,24.7106,147.77,147.68,13.1096]
[1642133246943,24.7106,147.77,147.68,19.1096]
[1642133248747,24.7106,147.77,147.68,13.1096]
[1642133250051,24.7106,147.77,147.68,19.1096]
[1642133251957,28.45141981,147.77,147.68,19.1096]
[1642133252980,3.74081981,147.77,147.68,35.2456]
[1642133253179,3.74081981,147.77,147.69,67.67]
[1642133253382,3.74081981,147.77,147.72,10.1495]
[1642133253579,3.74081981,147.77,147.73,31.14126679]
[1642133253979,3.74081981,147.77,147.73,31.39126679]
[1642133254780,3.74081981,147.8,147.73,47.79996679]
[1642133254980,3.74081981,147.8,147.73,115.46996679]
[1642133256081,27.57841981,147.82,147.75,10.1472]
[1642133256482,27.57841981,147.82,147.75,0.25]
[1642133257484,2.706,147.81,147.74,6.25]
[1642133257685,2.706,147.81,147.74,0.25]
[1642133257885,2.706,147.81,147.72,2.956]
[1642133258488,6.44681981,147.81,147.72,2.956]
[1642133258888,6.69681981,147.81,147.72,2.706]
[1642133259198,13.68742389,147.81,147.69,2.707]
[1642133259387,19.68742389,147.81,147.69,2.707]
[1642133259988,22.6307,147.8,147.7,24.2795]
[1642133260192,3.74081981,147.78,147.7,24.2795]
[1642133260391,3.74081981,147.78,147.7,24.5295]
[1642133260692,3.74081981,147.78,147.7,24.2795]
[1642133261892,3.88320487,147.78,147.7,24.2795]
[1642133262094,3.88320487,147.78,147.7,24.5295]
[1642133262494,16.60001981,147.79,147.7,24.5295]
[1642133262694,16.85001981,147.79,147.7,24.5295]
[1642133263298,3.88313843,147.78,147.7,24.5295]
[1642133263999,16.85001981,147.79,147.7,24.5295]
[1642133264297,16.153,147.78,147.69,2.707]
[1642133264496,16.153,147.78,147.67,2.707]
[1642133264497,2.707,147.77,147.67,2.707]
[1642133264699,2.707,147.77,147.66,27.0442]
[1642133264898,24.9022,147.76,147.66,27.0442]
[1642133265099,2.708,147.75,147.66,27.0442]
[1642133265696,12.863,147.75,147.66,27.0442]
[1642133267099,12.863,147.75,147.66,27.2942]
[1642133267699,2.708,147.75,147.66,27.2942]
[1642133268203,2.708,147.75,147.66,37.4477]
[1642133268601,28.89301981,147.76,147.66,37.4477]
[1642133268901,25.1522,147.76,147.66,37.4477]
[1642133269101,25.1522,147.76,147.66,43.4477]
[1642133269302,25.1522,147.76,147.66,37.4477]
[1642133269602,24.9022,147.76,147.66,37.4477]
[1642133269803,24.9022,147.76,147.66,43.7077]
[1642133270201,24.9022,147.76,147.66,43.4477]
[1642133275818,24.9022,147.76,147.67,67.67]
[1642133276018,24.9022,147.76,147.68,34.8406]
[1642133276416,24.9022,147.76,147.68,41.0906]
[1642133277018,24.9022,147.76,147.7,27.56898892]
[1642133277421,24.9022,147.76,147.7,33.81898892]
[1642133279444,24.9022,147.76,147.7,27.81898892]
[1642133280943,24.9022,147.76,147.7,33.81898892]
[1642133281444,24.9022,147.76,147.7,27.81898892]
[1642133285451,24.9022,147.76,147.7,33.81898892]
[1642133288652,6.44781981,147.79,147.7,34.07898892]
[1642133288851,6.44781981,147.79,147.71,26.0995]
[1642133288852,22.9685,147.78,147.71,26.0995]
[1642133289053,22.9685,147.78,147.71,26.3495]
[1642133289252,22.9685,147.78,147.71,32.3495]
[1642133289453,3.74081981,147.79,147.71,42.4998]
[1642133289652,3.74081981,147.79,147.71,49.3228]
[1642133289856,27.90301981,147.8,147.71,49.3228]
[1642133292358,23.2309,147.79,147.71,49.3228]
[1642133295359,23.2309,147.79,147.71,32.3495]
[1642133296458,23.2309,147.79,147.72,0.07]
[1642133297658,3.74081981,147.81,147.72,10.2195]
[1642133297858,3.74081981,147.81,147.73,22.6882]
[1642133298059,3.74081981,147.81,147.73,28.9382]
[1642133299161,7.62326786,147.81,147.73,28.9382]
[1642133300061,27.2533,147.82,147.73,28.9382]
[1642133302463,37.4037,147.82,147.73,31.6442]
[1642133302664,34.6967,147.82,147.73,31.6442]
[1642133306577,24.5463,147.82,147.73,41.7932]
[1642133306777,24.5463,147.82,147.73,51.8332]
[1642133307076,24.5463,147.82,147.73,121.19880408]
[1642133308984,24.5463,147.82,147.73,119.5032]
[1642133311787,24.5463,147.82,147.73,121.19880408]
[1642133312188,28.29731981,147.85,147.73,121.19880408]
[1642133312522,24.8148,147.84,147.73,121.19880408]
[1642133312723,27.5208,147.84,147.73,121.19880408]
[1642133315023,24.8148,147.84,147.73,121.19880408]
[1642133321729,24.8148,147.84,147.73,121.26880408]
[1642133325035,6.44681981,147.87,147.73,133.20872546]
[1642133325235,3.74081981,147.87,147.73,262.81101673]
[1642133325434,3.74081981,147.87,147.73,270.64801673]
[1642133326039,25.9676,147.89,147.73,270.64801673]
[1642133327939,25.9676,147.89,147.75,122.24]
[1642133328140,23.2616,147.89,147.82,10.1418]
[1642133328340,23.2616,147.89,147.83,31.11472796]
[1642133328540,23.2616,147.89,147.83,31.36472796]
[1642133328940,23.2616,147.89,147.83,56.20952796]
[1642133329444,3.74081981,147.92,147.84,22.6264]
[1642133329642,3.74081981,147.92,147.84,24.58200408]
[1642133329841,3.74081981,147.93,147.84,30.83200408]
[1642133331146,2.704,147.95,147.84,30.83200408]
[1642133331369,2.704,147.95,147.86,67.67]
[1642133331569,2.704,147.95,147.88,10.1387]
[1642133331975,2.704,147.95,147.88,16.3887]
[1642133332170,2.704,147.95,147.88,10.3887]
[1642133333770,2.704,147.95,147.89,26.84411484]
[1642133333970,2.704,147.95,147.89,37.23251484]
[1642133334171,2.704,147.95,147.89,45.35351484]
[1642133334372,25.724,147.96,147.89,45.35351484]
[1642133335173,25.724,147.96,147.89,37.23251484]
[1642133336374,29.46481981,147.96,147.89,37.23251484]
[1642133337975,26.76081981,147.96,147.89,37.23251484]
[1642133339678,3.74081981,147.96,147.89,105.16251484]
[1642133339876,3.74081981,147.96,147.89,113.86651484]
[1642133340276,3.74081981,147.96,147.89,111.16251484]
[1642133340776,7.6187986,147.97,147.89,111.16251484]
[1642133340978,7.6187986,147.97,147.9,9.78]
[1642133341177,7.6187986,147.97,147.92,10.1362]
[1642133341582,3.74081981,147.98,147.92,18.7432]
[1642133341979,3.74081981,147.98,147.92,25.0032]
[1642133342379,3.74081981,147.99,147.93,67.67]
[1642133342579,3.74081981,147.99,147.96,10.1335]
[1642133342779,3.74081981,147.99,147.97,0.2]
[1642133343582,1.93853162,147.98,147.97,0.2]
[1642133344583,6.0,148.0,147.97,0.2]
[1642133344786,3.74081981,148.01,147.97,0.2]
[1642133345485,1.93847756,147.98,147.97,0.2]
[1642133346683,1.93847756,147.99,147.97,0.2]
[1642133348187,7.8028775,147.99,147.97,0.2]
[1642133348387,7.8028775,147.99,147.93,9.78]
[1642133348987,7.8028775,147.99,147.93,34.95995589]
[1642133349786,1.93847756,147.97,147.93,35.20995589]
[1642133350186,1.93847756,147.97,147.93,45.34565589]
[1642133350686,1.93847756,147.98,147.93,45.34565589]
[1642133351089,1.93847756,147.98,147.93,51.60565589]
[1642133351487,1.93847756,147.98,147.94,2.703]
[1642133351686,1.93847756,147.98,147.96,10.1334]
[1642133352086,1.93847756,147.99,147.97,33.2]
[1642133352491,1.93847756,147.99,147.97,33.45]
[1642133352888,1.93847756,147.99,147.97,43.5829]
[1642133353089,1.93847756,148.01,147.97,43.5829]
[1642133353487,1.93847756,148.01,147.98,67.67]
[1642133353689,1.93847756,148.01,147.99,22.89711483]
[1642133353888,1.93847756,148.01,148.0,0.2]
[1642133354787,0.33942735,148.02,148.0,0.2]
[1642133354987,0.33942735,148.02,148.0,10.3306]
[1642133355389,0.33942735,148.02,148.0,20.3606]
[1642133358291,0.33942735,148.02,148.0,26.3606]
[1642133358492,0.33942735,148.02,148.0,20.3606]
[1642133358693,0.33942735,148.02,148.0,0.2]
[1642133359093,5.86439994,148.01,147.94,43.5531]
[1642133359293,5.86439994,148.01,147.95,2.703]
[1642133359695,5.86439994,148.01,147.96,9.78]
[1642133360094,3.03219997,148.01,147.96,9.78]
[1642133360497,3.03219997,148.01,147.96,10.03]
[1642133360803,1.93847756,148.01,147.96,10.03]
[1642133361297,1.93847756,148.01,147.97,10.1331]
[1642133361494,1.93847756,148.01,147.97,10.3831]
[1642133361696,2.27790491,148.02,147.97,10.3831]
[1642133361901,2.27790491,148.02,147.98,9.78]
[1642133362096,2.27790491,148.02,147.98,10.03]
[1642133362898,2.27790491,148.02,147.98,20.1622]
[1642133363298,0.33942735,148.02,147.98,20.1622]
[1642133363896,0.33942735,148.02,147.98,26.1622]
[1642133364096,0.33942735,148.02,147.98,20.1622]
[1642133364501,0.33942735,148.02,147.99,2.702]
[1642133364696,0.33942735,148.02,148.0,10.3307]
[1642133364897,0.33942735,148.02,148.01,30.31312775]
[1642133365328,0.33942735,148.02,148.01,30.56312775]
[1642133366029,0.33942735,148.02,148.01,40.34312775]
[1642133367430,0.33942735,148.02,148.01,46.60312775]
[1642133367628,0.33942735,148.02,148.01,114.27312775]
[1642133369729,0.33942735,148.02,148.01,46.60312775]
[1642133370029,0.33942735,148.02,148.01,46.34312775]
[1642133370228,0.33942735,148.02,148.01,40.34312775]
[1642133370428,0.00942735,148.02,148.01,114.01312775]
[1642133370630,1.93847756,148.05,148.03,67.67]
[1642133370832,1.93847756,148.05,148.04,32.2]
[1642133371033,1.93847756,148.05,148.04,48.8364]
[1642133371233,1.93847756,148.05,148.04,58.6164]
[1642133371532,1.93847756,148.07,148.04,126.2864]
[1642133371732,1.93847756,148.07,148.04,150.4699]
[1642133372131,1.93847756,148.1,148.04,150.4699]
[1642133372332,21.17897756,148.12,148.04,150.4699]
[1642133372936,21.17897756,148.12,148.04,118.4699]
[1642133373536,21.17897756,148.12,148.04,50.5399]
[1642133373735,21.17897756,148.12,148.04,12.681]
[1642133373736,20.67897756,148.12,148.04,12.681]
[1642133373937,2.701,148.11,148.04,9.98]
[1642133374942,2.201,148.11,148.04,16.24]
[1642133375438,2.201,148.11,148.04,26.3682]
[1642133375738,2.201,148.11,148.04,9.98]
[1642133375937,2.201,148.11,148.04,15.98]
[1642133376439,2.201,148.11,148.04,10.23]
[1642133376641,2.201,148.11,148.04,94.028]
[1642133376839,2.201,148.11,148.04,20.358]
[1642133377039,0.001,148.11,148.04,17.92026601]
[1642133377239,3.74081981,148.13,148.04,134.16026601]
[1642133377439,3.74081981,148.13,148.07,30.57224651]
[1642133377640,3.74081981,148.13,148.08,77.45]
[1642133377840,30.06031981,148.17,148.09,10.1242]
[1642133378140,30.06031981,148.17,148.1,9.78]
[1642133378341,27.35931981,148.17,148.1,9.78]
[1642133378539,23.6185,148.17,148.1,16.03]
[1642133378940,23.6185,148.17,148.13,24.46582709]
[1642133378941,22.6185,148.17,148.13,24.46582709]
[1642133379140,0.17005004,148.18,148.13,24.46582709]
[1642133379341,0.17005004,148.18,148.13,24.71582709]
[1642133381141,0.17005004,148.18,148.14,9.78]
[1642133381547,0.17005004,148.18,148.14,10.03]
[1642133382346,0.17005004,148.18,148.14,20.1522]
[1642133386950,0.17005004,148.18,148.14,20.1722]
[1642133387152,0.17005004,148.18,148.14,20.1922]
[1642133389755,0.17005004,148.18,148.14,10.07]
[1642133391156,0.17005004,148.18,148.14,20.1924]
[1642133393382,0.17005004,148.18,148.14,10.07]
[1642133394084,2.699,148.17,148.14,0.04]
[1642133394485,5.86439994,148.16,148.14,0.04]
[1642133397487,0.17005004,148.18,148.14,0.04]
[1642133397688,0.17005004,148.18,148.15,0.2]
[1642133401591,0.17005004,148.18,148.15,30.40528795]
[1642133401793,0.17005004,148.18,148.15,40.52698795]
[1642133401992,0.17005004,148.18,148.15,47.03698795]
[1642133402194,0.17005004,148.18,148.16,9.78]
[1642133402394,0.17005004,148.18,148.17,44.2]
[1642133402592,0.17005004,148.18,148.17,59.98]
[1642133402792,0.17005004,148.18,148.17,60.23]
[1642133403193,0.17005004,148.18,148.17,70.3479]
[1642133403394,0.17005004,148.18,148.17,23.0469]
[1642133403994,0.17005004,148.18,148.17,29.0469]
[1642133404194,0.17005004,148.18,148.17,53.3069]
[1642133405195,0.17005004,148.18,148.17,47.3069]
[1642133406095,0.17005004,148.18,148.17,114.9769]
[1642133406494,5.004e-05,148.18,148.17,114.9769]
[1642133407099,5.004e-05,148.18,148.17,120.9769]
[1642133407307,5.004e-05,148.18,148.17,120.9969]
[1642133407505,5.004e-05,148.18,148.17,121.0169]
[1642133410610,5.004e-05,148.18,148.17,121.0369]
[1642133410809,5.004e-05,148.18,148.17,121.0569]
[1642133411410,7.61155703,148.27,148.18,68.0]
[1642133411611,7.61155703,148.27,148.23,10.1155]
[1642133411810,7.61155703,148.27,148.24,31.37261914]
[1642133412011,7.61155703,148.27,148.24,31.62261914]
[1642133412415,5.86439994,148.26,148.24,31.62261914]